{"text_format":"1","workbook":"xlsx","n_sheets":4,"sheets":["Cover","SAC Membership Directions","SAC Membership List","SAC Assurances"],"not_rendered":{"charts":0,"images":0,"macros":1,"external_links":0,"defined_names":1,"comments":1,"pivot_tables":0},"unopened":[],"bounds":{"document_bytes":16777216,"sheet_cells":100000,"rows_first":2000,"rows_last":500,"rows_between":2000,"halvings":0,"cell_chars":16384,"cell_head_chars":4096},"cells_cut":0,"cells_raw":0,"read":"whole","date_system":"1900"}

{"sheet":"Cover","index":0,"n_rows":4,"n_cols":1,"rows_kept":4,"cut":false,"hidden":false,"merged":[[0,0,0,6],[1,0,1,6],[3,0,3,6],[2,0,2,6]]}
["This WORKBOOK contains tips and will calculate the \npercentages for you. "]
["Please read the instructions and start by listing names within the \nSAC Membership List Section."]
["Enter data ONLY in the highlighted cells.  If the cell is not highlighted, it will calculate for you."]
["To navigate through the sections please use the tabs below."]

{"sheet":"SAC Membership Directions","index":1,"n_rows":34,"n_cols":2,"rows_kept":34,"cut":false,"hidden":false,"merged":[[28,0,28,9],[30,0,30,6],[31,0,31,8],[33,0,36,9],[22,0,22,1],[23,0,23,2],[24,0,24,4],[25,0,25,4],[26,0,26,9],[27,0,27,9],[21,0,21,9],[0,0,0,9],[1,0,1,9],[3,0,3,4],[5,0,5,9],[7,0,7,9],[9,0,9,6],[11,0,11,9],[13,0,13,9],[15,0,15,8],[17,0,18,9],[19,0,19,4]]}
["LCS School Advisory Council Membership"]
["General Directions"]
[]
["Completing the SAC Membership Excel File "]
[null,"Complete the \"SAC Membership List\" Sheet First!!"]
["This file has three sections: Instructional, SAC Membership List, and SAC Assurances. In Excel you can navigate through the sections by using the tabs at the bottom of the page."]
[]
["The SAC Membership and SAC Assurances sections have special features to help you complete this task."]
[]
["You will only be able to select and enter data in the highlighted cells."]
[]
["Other than individuals' names and numbers of students and SAC members, information is entered via drop down menus."]
[]
["Email the completed SAC Membership Excel file to sacminutes@leonschools.net"]
[]
["The signed assurances form must be received by the deadline of September 27, 2019. Please submit this signed assurances form as a PDF so that the signature is visible."]
[]
["If a SAC member is designated as the \"other\", attach a request signed by the principal on school letterhead, that the School Board should  appoint the person to the School Advisory Council. Provide the reason for the request. Bringing the SAC into racial and economic compliance are the acceptable reasons for asking the School Board to appoint a person to a SAC."]
[]
["Complete all the information for each SAC member."]
[]
["Each School Advisory Council must include a balanced group composed of the principal, teachers, parents, support staff, and students, and business/community representatives, including:"]
["The principal,"]
["A balanced number of teachers,"]
["At least one (1) non-instructional support person,"]
["At least four (4) parents not employed by the school,"]
["At least two (2) business/community representatives who are not school district staff other than the four parents names above,"]
["At least one (1) student at the High School, Vocational, and Adult levels (no elementary students are allowed to be SAC members), and"]
["50% +1 of the membership who are not employed at the school DISTRICT. Students are not counted either way in making this determination. For students, enter N/A for \"District Employee.\""]
[]
["Each School Advisory Council must meet the following criteria: "]
["All teachers, parents, students, and support persons must be elected members of your SAC."]
[]
["SAC members must be representative of the ethnic, racial, and socioeconomic background of the community served by the school. Signature of the assurance statement satisfies this requirement. The SAC must document attempts to recruit if such representation is out of compliance."]

{"sheet":"SAC Membership List","index":2,"n_rows":66,"n_cols":23,"rows_kept":66,"cut":false,"hidden":false,"merged":[]}
["Member",null,null," School Advisory Council Membership",null,null,null,null,"Member","Information"]
["Status",null,"First Name","Last Name","Group \n(Bus/Comm, Parent, Principal, Student, Teacher, Support Staff)","Race\n(B, W, Other)","DISTRICT Employee\n(Y/N)","Elected\n(Y/N)","In Compliance","Complete","Options","(Select School Name)",null,"Bus/Comm","Parent","Principal","Student","Support","Teacher","Other","Black","White","Other"]
["Member",null,"Sue","Rishell","Principal","White","Yes","No",{"$f":"OR(AND(E3=\"Parent\",G3=\"No\",H3=\"Yes\"),AND(E3=\"Teacher\",G3=\"Yes\",H3=\"Yes\"),AND(E3=\"Support\",G3=\"Yes\",H3=\"Yes\"),AND(E3=\"Student\",H3=\"Yes\",G3=\"N/A\",H3=\"Yes\"),AND(E3=\"Bus/Comm\",G3=\"No\",H3=\"No\"),AND(E3=\"Principal\",G3=\"Yes\",H3=\"No\"),AND(E3=\"Other\"))","v":true},{"$f":"AND(A3<>\"\",C3<>\"\",D3<>\"\",E3<>\"\",F3<>\"\",G3<>\"\",H3<>\"\")","v":true},"Bus/Comm","Adult and Community Education Center",null,{"$f":"IF((AND(IF($E3=\"Bus/Comm\",1,0),OR(IF($A3=\"Member\",1,0),IF($A3=\"New\",1,0)))),1,0)","v":0},{"$f":"IF((AND(IF($E3=\"Parent\",1,0),OR(IF($A3=\"Member\",1,0),IF($A3=\"New\",1,0)))),1,0)","v":0},{"$f":"IF((AND(IF($E3=\"Principal\",1,0),OR(IF($A3=\"Member\",1,0),IF($A3=\"New\",1,0)))),1,0)","v":1},{"$f":"IF((AND(IF($E3=\"Student\",1,0),OR(IF($A3=\"Member\",1,0),IF($A3=\"New\",1,0)))),1,0)","v":0},{"$f":"IF((AND(IF($E3=\"Support\",1,0),OR(IF($A3=\"Member\",1,0),IF($A3=\"New\",1,0)))),1,0)","v":0},{"$f":"IF((AND(IF($E3=\"Teacher\",1,0),OR(IF($A3=\"Member\",1,0),IF($A3=\"New\",1,0)))),1,0)","v":0},{"$f":"IF((AND(IF($E3=\"Other\",1,0),OR(IF($A3=\"Member\",1,0),IF($A3=\"New\",1,0)))),1,0)","v":0},{"$f":"IF((AND(IF($F3=\"Black\",1,0),OR(IF($A3=\"Member\",1,0),IF($A3=\"New\",1,0)))),1,0)","v":0},{"$f":"IF((AND(IF($F3=\"White\",1,0),OR(IF($A3=\"Member\",1,0),IF($A3=\"New\",1,0)))),1,0)","v":1},{"$f":"IF((AND(IF($F3=\"Other\",1,0),OR(IF($A3=\"Member\",1,0),IF($A3=\"New\",1,0)))),1,0)","v":0}]
["Member",null,"Amanda ","Mills","Teacher","White","Yes","Yes",{"$f":"OR(AND(E4=\"Parent\",G4=\"No\",H4=\"Yes\"),AND(E4=\"Teacher\",G4=\"Yes\",H4=\"Yes\"),AND(E4=\"Support\",G4=\"Yes\",H4=\"Yes\"),AND(E4=\"Student\",H4=\"Yes\",G4=\"N/A\",H4=\"Yes\"),AND(E4=\"Bus/Comm\",G4=\"No\",H4=\"No\"),AND(E4=\"Principal\",G4=\"Yes\",H4=\"No\"),AND(E4=\"Other\"))","v":true},{"$f":"AND(A4<>\"\",C4<>\"\",D4<>\"\",E4<>\"\",F4<>\"\",G4<>\"\",H4<>\"\")","v":true},"Parent","Apalachee",null,{"$f":"IF((AND(IF($E4=\"Bus/Comm\",1,0),OR(IF($A4=\"Member\",1,0),IF($A4=\"New\",1,0)))),1,0)","v":0},{"$f":"IF((AND(IF($E4=\"Parent\",1,0),OR(IF($A4=\"Member\",1,0),IF($A4=\"New\",1,0)))),1,0)","v":0},{"$f":"IF((AND(IF($E4=\"Principal\",1,0),OR(IF($A4=\"Member\",1,0),IF($A4=\"New\",1,0)))),1,0)","v":0},{"$f":"IF((AND(IF($E4=\"Student\",1,0),OR(IF($A4=\"Member\",1,0),IF($A4=\"New\",1,0)))),1,0)","v":0},{"$f":"IF((AND(IF($E4=\"Support\",1,0),OR(IF($A4=\"Member\",1,0),IF($A4=\"New\",1,0)))),1,0)","v":0},{"$f":"IF((AND(IF($E4=\"Teacher\",1,0),OR(IF($A4=\"Member\",1,0),IF($A4=\"New\",1,0)))),1,0)","v":1},{"$f":"IF((AND(IF($E4=\"Other\",1,0),OR(IF($A4=\"Member\",1,0),IF($A4=\"New\",1,0)))),1,0)","v":0},{"$f":"IF((AND(IF($F4=\"Black\",1,0),OR(IF($A4=\"Member\",1,0),IF($A4=\"New\",1,0)))),1,0)","v":0},{"$f":"IF((AND(IF($F4=\"White\",1,0),OR(IF($A4=\"Member\",1,0),IF($A4=\"New\",1,0)))),1,0)","v":1},{"$f":"IF((AND(IF($F4=\"Other\",1,0),OR(IF($A4=\"Member\",1,0),IF($A4=\"New\",1,0)))),1,0)","v":0}]
["Member",null,"Gregory ","Williams","Parent","Black","No","Yes",true,true,"Principal","Arts and Sciences Charter, School of",null,0,1,0,0,0,0,0,1,0,0]
["Member",null,"Marylee","Hallam","Bus/Comm","White","Yes","No",false,true,"Student","Astoria Park",null,1,0,0,0,0,0,0,0,1,0]
["Member",null,"Shelly","Hunt","Parent","White","Yes","Yes",false,true,"Support","Bond",null,0,1,0,0,0,0,0,0,1,0]
["Member",null,"Brandy ","McIntosh","Parent","Black","Yes","No",false,true,"Teacher","Buck Lake",null,0,1,0,0,0,0,0,1,0,0]
["Member",null,"Nancy","Morgan","Parent","White","No","Yes",true,true,"Other","Canopy Oaks",null,0,1,0,0,0,0,0,0,1,0]
["Member",null,"Sheeja","George","Parent","Black","No","Yes",true,true,"Black","Chaires",null,0,1,0,0,0,0,0,1,0,0]
["Member",null,"Kelli","Wilson","Parent","Black","No","Yes",true,true,"White","Chiles",null,0,1,0,0,0,0,0,1,0,0]
["Member",null,"Jennifer ","Peavy","Bus/Comm","White","No","No",true,true,"Other","Cobb",null,1,0,0,0,0,0,0,0,1,0]
["Member",null,"Pamela ","Paul","Support","White","Yes","Yes",true,true,null,"Deerlake",null,0,0,0,0,1,0,0,0,1,0]
["Member",null,"Reina ","Sessions","Teacher","Other","Yes","Yes",true,true,null,"Desoto Trail",null,0,0,0,0,0,1,0,0,0,1]
["Member",null,"Colleen","Hosford","Teacher","White","Yes","Yes",true,true,"Yes","Devereux S. I. P. P.",null,0,0,0,0,0,1,0,0,1,0]
["Member",null,"Caroline","Simpkins","Teacher","White","Yes","Yes",true,true,"No","Disc Village",null,0,0,0,0,0,1,0,0,1,0]
["Member",null,"Lauren","Pierce","Bus/Comm","White","No","No",true,true,"N/A","Everhart",null,1,0,0,0,0,0,0,0,1,0]
["Member",null,"Selika ","Sampson","Parent","Black","No","Yes",{"$f":"OR(AND(E18=\"Parent\",G18=\"No\",H18=\"Yes\"),AND(E18=\"Teacher\",G18=\"Yes\",H18=\"Yes\"),AND(E18=\"Support\",G18=\"Yes\",H18=\"Yes\"),AND(E18=\"Student\",H18=\"Yes\",G18=\"N/A\",H18=\"Yes\"),AND(E18=\"Bus/Comm\",G18=\"No\",H18=\"No\"),AND(E18=\"Principal\",G18=\"Yes\",H18=\"No\"),AND(E18=\"Other\"))","v":true},{"$f":"AND(A18<>\"\",C18<>\"\",D18<>\"\",E18<>\"\",F18<>\"\",G18<>\"\",H18<>\"\")","v":true},null,"Fairview",null,{"$f":"IF((AND(IF($E18=\"Bus/Comm\",1,0),OR(IF($A18=\"Member\",1,0),IF($A18=\"New\",1,0)))),1,0)","v":0},{"$f":"IF((AND(IF($E18=\"Parent\",1,0),OR(IF($A18=\"Member\",1,0),IF($A18=\"New\",1,0)))),1,0)","v":1},{"$f":"IF((AND(IF($E18=\"Principal\",1,0),OR(IF($A18=\"Member\",1,0),IF($A18=\"New\",1,0)))),1,0)","v":0},{"$f":"IF((AND(IF($E18=\"Student\",1,0),OR(IF($A18=\"Member\",1,0),IF($A18=\"New\",1,0)))),1,0)","v":0},{"$f":"IF((AND(IF($E18=\"Support\",1,0),OR(IF($A18=\"Member\",1,0),IF($A18=\"New\",1,0)))),1,0)","v":0},{"$f":"IF((AND(IF($E18=\"Teacher\",1,0),OR(IF($A18=\"Member\",1,0),IF($A18=\"New\",1,0)))),1,0)","v":0},{"$f":"IF((AND(IF($E18=\"Other\",1,0),OR(IF($A18=\"Member\",1,0),IF($A18=\"New\",1,0)))),1,0)","v":0},{"$f":"IF((AND(IF($F18=\"Black\",1,0),OR(IF($A18=\"Member\",1,0),IF($A18=\"New\",1,0)))),1,0)","v":1},{"$f":"IF((AND(IF($F18=\"White\",1,0),OR(IF($A18=\"Member\",1,0),IF($A18=\"New\",1,0)))),1,0)","v":0},{"$f":"IF((AND(IF($F18=\"Other\",1,0),OR(IF($A18=\"Member\",1,0),IF($A18=\"New\",1,0)))),1,0)","v":0}]
["Member",null,"Corine","Stancil","Parent","Black","No","Yes",true,true,null,"Ft. Braden K-8",null,0,1,0,0,0,0,0,1,0,0]
["Member",null,"Jamie","Steed","Parent","Black","No","No",false,true,"Member","Ghazvini",null,0,1,0,0,0,0,0,1,0,0]
["Member",null,"Ckrystal","Stokes","Parent","Black","No","No",false,true,"Absence","Gilchrist",null,0,1,0,0,0,0,0,1,0,0]
["Member",null,null,null,null,null,null,null,false,false,"Other","Godby",null,0,0,0,0,0,0,0,0,0,0]
["Member",null,null,null,null,null,null,null,false,false,"New","Griffin",null,0,0,0,0,0,0,0,0,0,0]
["Member",null,null,null,null,null,null,null,false,false,null,"Hartsfield",null,0,0,0,0,0,0,0,0,0,0]
["Member",null,null,null,null,null,null,null,false,false,null,"Hawks Rise",null,0,0,0,0,0,0,0,0,0,0]
["Member",null,null,null,null,null,null,null,false,false,null,"Imagine School at Evening Rose Charter",null,0,0,0,0,0,0,0,0,0,0]
["Member",null,null,null,null,null,null,null,false,false,null,"JDC and Sawmill Academy",null,0,0,0,0,0,0,0,0,0,0]
["Member",null,null,null,null,null,null,null,false,false,null,"Killearn Lakes",null,0,0,0,0,0,0,0,0,0,0]
["Member",null,null,null,null,null,null,null,false,false,null,"Leon",null,0,0,0,0,0,0,0,0,0,0]
["Member",null,null,null,null,null,null,null,false,false,null,"Lincoln",null,0,0,0,0,0,0,0,0,0,0]
["Member",null,null,null,null,null,null,null,false,false,null,"Lively Technical",null,0,0,0,0,0,0,0,0,0,0]
["Member",null,null,null,null,null,null,null,false,false,null,"Marine Institute",null,0,0,0,0,0,0,0,0,0,0]
["Member",null,null,null,null,null,null,null,false,false,null,"Moore",null,0,0,0,0,0,0,0,0,0,0]
["Member",null,null,null,null,null,null,null,false,false,null,"Nims",null,0,0,0,0,0,0,0,0,0,0]
["Member",null,null,null,null,null,null,null,false,false,null,"Oak Ridge",null,0,0,0,0,0,0,0,0,0,0]
["Member",null,null,null,null,null,null,null,false,false,null,"PACE for Girls",null,0,0,0,0,0,0,0,0,0,0]
["Member",null,null,null,null,null,null,null,false,false,null,"PACE Secondary",null,0,0,0,0,0,0,0,0,0,0]
["Member",null,null,null,null,null,null,null,false,false,null,"Pineview",null,0,0,0,0,0,0,0,0,0,0]
["Member",null,null,null,null,null,null,null,false,false,null,"Raa",null,0,0,0,0,0,0,0,0,0,0]
["Member",null,null,null,null,null,null,null,false,false,null,"Rickards",null,0,0,0,0,0,0,0,0,0,0]
["Member",null,null,null,null,null,null,null,false,false,null,"Riley",null,0,0,0,0,0,0,0,0,0,0]
["Member",null,null,null,null,null,null,null,false,false,null,"Roberts",null,0,0,0,0,0,0,0,0,0,0]
["Member",null,null,null,null,null,null,null,false,false,null,"Ruediger",null,0,0,0,0,0,0,0,0,0,0]
["Member",null,null,null,null,null,null,null,false,false,null,"Sabal Palm",null,0,0,0,0,0,0,0,0,0,0]
["Member",null,null,null,null,null,null,null,false,false,null,"SAIL",null,0,0,0,0,0,0,0,0,0,0]
["Member",null,null,null,null,null,null,null,false,false,null,"Sealey",null,0,0,0,0,0,0,0,0,0,0]
["Member",null,null,null,null,null,null,null,false,false,null,"Seminole Work and Learn",null,0,0,0,0,0,0,0,0,0,0]
["Member",null,null,null,null,null,null,null,false,false,null,"Springwood",null,0,0,0,0,0,0,0,0,0,0]
["Member",null,null,null,null,null,null,null,false,false,null,"STARS Charter",null,0,0,0,0,0,0,0,0,0,0]
["Member",null,null,null,null,null,null,null,false,false,null,"Steele/Collins Charter",null,0,0,0,0,0,0,0,0,0,0]
["Member",null,null,null,null,null,null,null,false,false,null,"Success Academy (6-12)",null,0,0,0,0,0,0,0,0,0,0]
["Member",null,null,null,null,null,null,null,false,false,null,"Sullivan",null,0,0,0,0,0,0,0,0,0,0]
[null,null,null,"Business/Community Members",{"$f":"N53","v":3},{"$f":"IF(E53>=2,\"YES\",\"NO\")","v":"YES"},null,null,null,null,null,"Swift Creek",null,{"$f":"SUM(N3:N52)","v":3},{"$f":"SUM(O3:O52)","v":10},1,0,1,4,0,{"$f":"SUM(U3:U52)","v":8},{"$f":"SUM(V3:V52)","v":10},{"$f":"SUM(W3:W52)","v":1}]
[null,null,null,"Parents",{"$f":"O53","v":10},{"$f":"IF(E54>=4,\"YES\",\"NO\")","v":"YES"},null,null,null,null,null,"Virtual School"]
[null,null,null,"Principal",{"$f":"P53","v":1},{"$f":"IF(E55=1,\"YES\",\"NO\")","v":"YES"},null,null,null,null,null,"Woodville"]
[null,null,null,"Students",{"$f":"Q53","v":0},{"$f":"IF(E56>=1,\"YES\",\"NO\")","v":"NO"}]
[null,null,null,"Support Staff",{"$f":"R53","v":1},{"$f":"IF(E57>=1,\"YES\",\"NO\")","v":"YES"}]
[null,null,null,"Teachers",{"$f":"S53","v":4},{"$f":"IF(E58>=1,\"YES\",\"NO\")","v":"YES"}]
[null,null,null,"Other",{"$f":"T53","v":0}]
[null,null,null,"TOTAL*",{"$f":"E53+E54+E55+E57+E58","v":19}]
[null,null,null,"% not employed at the school*",{"$f":"(E53+E54)/(E60+0.0001)","v":0.68420692522670934},{"$f":"IF(E61>0.5,\"YES\",\"NO\")","v":"YES"}]
[null,null,null,"* Students not counted"]
[]
[null,null,null,"Black",{"$f":"U53","v":8},{"$f":"E64/SUM((E$64:E$66)+0.0001)","v":0.99998750015624804}]
[null,null,null,"White",{"$f":"V53","v":10},{"$f":"E65/SUM((E$64:E$66)+0.0001)","v":0.99999000009999905}]
[null,null,null,"Other",{"$f":"W53","v":1},{"$f":"E66/SUM((E$64:E$66)+0.0001)","v":0.99990000999900008}]

{"sheet":"SAC Assurances","index":3,"n_rows":47,"n_cols":9,"rows_kept":47,"cut":false,"hidden":false,"merged":[[36,0,36,7],[3,5,3,6],[10,1,10,5],[34,0,34,7],[20,1,20,7],[21,1,21,7],[22,1,22,7],[23,1,23,7],[24,1,24,7],[14,5,14,6],[25,1,25,7],[16,5,16,6],[17,5,17,6],[18,5,18,6],[13,5,13,6],[12,5,12,6],[44,0,44,1],[42,0,42,1],[46,0,46,1],[39,2,39,6],[44,2,44,6],[42,2,42,6],[46,2,46,6],[39,0,39,1],[15,5,15,6],[2,1,2,5],[27,1,27,7],[31,1,31,7],[0,3,0,5],[0,0,0,2],[1,0,1,6],[32,1,32,7],[30,1,30,7],[26,1,26,7],[28,1,28,7],[29,1,29,7]]}
[{"$f":"'SAC Membership List'!$C$1","v":0},null,null," School Advisory Council",null,null,null,null,"YES"]
["ASSURANCES",null,null,null,null,null,null,null,"NO"]
[null,"INITIAL SAC MEMBERSHIP REPORT"]
[null,null,null,null,null,null,null,null,"N/A"]
[null,null,null,null,null,null,null,null,"INITIAL SAC MEMBERSHIP REPORT"]
[null,"Group","Number","Percent","Group","Number","Percent",null,"MIDYEAR SAC MEMBERSHIP REVIEW- NO CHANGES"]
[null,"Business/Community",{"$f":"'SAC Membership List'!$E$53","v":3},{"$f":"C7/($C$7+$C$8+$C$9+$F$7+$F$8+$F$9+0.0001)","v":0.1578939058215483},"Teacher",{"$f":"'SAC Membership List'!$E$58","v":4},{"$f":"F7/($C$7+$C$8+$C$9+$F$7+$F$8+$F$9+0.0001)","v":0.2105252077620644},null,"MIDYEAR SAC MEMBERSHIP REVIEW- Changed Membership"]
[null,"Parent",{"$f":"'SAC Membership List'!$E$54","v":10},{"$f":"C8/($C$7+$C$8+$C$9+$F$7+$F$8+$F$9+0.0001)","v":0.52631301940516106},"Support",{"$f":"'SAC Membership List'!$E$57","v":1},{"$f":"F8/($C$7+$C$8+$C$9+$F$7+$F$8+$F$9+0.0001)","v":5.2631301940516101E-2}]
[null,"Student",{"$f":"'SAC Membership List'!$E$56","v":0},{"$f":"C9/($C$7+$C$8+$C$9+$F$7+$F$8+$F$9+0.0001)","v":0},"Principal",{"$f":"'SAC Membership List'!$E$55","v":1},{"$f":"F9/($C$7+$C$8+$C$9+$F$7+$F$8+$F$9+0.0001)","v":5.2631301940516101E-2}]
[]
[null,"Percent SAC members not employed by the district excluding students: ",null,null,null,null,{"$f":"(C7+C8)/(C7+C8+F7+F8+F9+0.0001)","v":0.68420692522670934}]
[]
[null,"Racial/","Students","Students","SAC","SAC"]
[null,"Ethnic"," In School","In School","Members","Members"]
[null,"Composition","(Number)","(Percent)","(Number)","(Percent)"]
[null,"Black",null,{"$f":"C16/$C$19","v":0},{"$f":"'SAC Membership List'!$E$64","v":8},{"$f":"E16/$E$19","v":0.42105041552412881}]
[null,"White",null,{"$f":"C17/$C$19","v":0},{"$f":"'SAC Membership List'!E65","v":10},{"$f":"E17/$E$19","v":0.52631301940516106}]
[null,"Other",null,{"$f":"C18/$C$19","v":0},{"$f":"'SAC Membership List'!E66","v":1},{"$f":"E18/$E$19","v":5.2631301940516101E-2}]
[null,"Total",{"$f":"SUM(C16:C18)+0.0001","v":1E-4},{"$f":"IF(C19>0.5,C19/$C$19,0)","v":0},{"$f":"SUM($E$16:$E$18)+0.0001","v":19.0001},{"$f":"IF(E19>0.5,(E19/$E$19),0)","v":1}]
[]
["YES","Is the Principal a SAC member? (The Principal is appointed to the SAC by law.)"]
["YES","Is there a balanced number of teachers? The SAC shall be a balanced group composed of the principal, teachers, parents, support staff, and students, and business/community representatives."]
["YES","Were all teachers elected by teachers?"]
["YES","Is there least one non-instructional support person?"]
["YES","Were all non-instructional support persons elected by non-instructional support staff?"]
["YES","Are there at least four parents not employed by the school (not required at Adult or Vocational levels)?"]
["YES","Were all parents elected by parents?"]
["YES","Are there at least two appointed business/community representatives that are not LCS employees other than the four parents referrenced above?"]
["N/A","Is there at least one student (High School, Adult and Vocational levels only)?"]
["N/A","Were all students elected by students?"]
["YES","Is the majority (over 50%) of the SAC membership not employed by the school DISTRICT? (Students are not part of this calculation.)"]
["YES","Is the majority of the SAC membership of the same ethnic, racial and socioeconomic composition as the community served by the school?"]
["YES","If  the SAC members are not representative of the composition of the community, have you documented attempts to recruit members?"]
[]
["If your school (1) conducted properly held elections and (2) your SAC members are representative of the composition of the community served, then sign the assurances below, If not, contact Gillian Gregory immediately."]
[]
["We assure the Superintendent and the School Board that (1) our school conducted properly held elections and that (2) our School Advisory Council is representative of the socioeconomic composition of our school and that we maintain records to that effect in our school."]
[]
[]
["Principal Signature: "]
[]
[]
["  SAC Chair Signature: "]
[]
["SAC Chair Name:"]
[]
["SAC Chair E-mail: "]